Cogmind - Beta 14 *** ADVENTURER MODE // 2025.03.20 @ 12:29:50 Player: Morii Result: Destroyed self with Mini Grenade Launcher Performance ------------- Evolutions (1) 500 Regions Visited (3) 600 Robots Destroyed (57) 285 Value Destroyed (1621) 1621 Prototype IDs (5) 100 Alien Tech Used (0) 0 Bonus (39) 39 TOTAL SCORE: 3145 Bonus ------- High Alert Combat Kills 39 Cogmind --------- Core Integrity 0/400 Matter 235/300 Energy 265/265 System Corruption 0% Temperature Cool (7) Movement Walking (190) Ox1 Location -9/Storage Parts ------- > --- POWER (2) -------- Improved Ion Engine > --- PROPULSION (2) --- Improved Aluminum Leg > --- UTILITY (3) ------ Small Storage Unit Structural Scanner > --- WEAPON (2) ------- Mini Grenade Launcher Flail > --- INVENTORY (8) ---- Power Shielding Particle Cannon Improved Assault Rifle Improved Assault Rifle Peak State ------------ > --- POWER ------------ Light Ion Engine Improved Ion Engine > --- PROPULSION ------- Light Treads Light Treads > --- UTILITY ---------- Improved Heat Sink Small Storage Unit Shield Generator > --- WEAPON ----------- Improved Assault Rifle Improved Assault Rifle > --- INVENTORY -------- Light Ion Engine Aluminum Leg Aluminum Leg Power Shielding EM Pulse Gun Beam Rifle Assault Rifle [Rating: 17] Favorites ----------- Power Ion Engine Engine Ion Engine Propulsion Aluminum Leg Treads Light Treads Leg Aluminum Leg Flight Unit Improved Flight Unit Utility Small Storage Unit Device Improved Heat Sink Storage Small Storage Unit Protection Power Shielding Weapon Particle Gun Energy Gun Particle Gun Ballistic Gun Improved Assault Rifle Ballistic Cannon Light Cannon Launcher Mini Grenade Launcher Impact Weapon Flail Build | -11 -10 -9 -9 ------- Run | Yrd Mat Mat Sto Slots Evolved 2 | . . 2 . Power 1 | . . 1 . Propulsion . | . . . . Utility 1 | . . 1 . Weapon . | . . . . Parts Attached 48 | 6 7 26 9 Power 9 | 1 1 6 1 Engine 9 | 1 1 6 1 Core . | . . . . Reactor . | . . . . Propulsion 11 | 2 1 8 . Treads 3 | . . 3 . Leg 7 | 2 1 4 . Wheel . | . . . . Hover . | . . . . Flight 1 | . . 1 . Utility 13 | 1 3 5 4 Device 6 | . 2 3 1 Storage 1 | 1 . . . Processor . | . . . . Hackware . | . . . . Protection 6 | . 1 2 3 Artifact . | . . . . Weapon 15 | 2 2 7 4 Energy Gun 4 | . 2 2 . Energy Cannon . | . . . . Ballistic Gun 6 | 2 . 4 . Ballistic Cannon 1 | . . . 1 Launcher 2 | . . . 2 Special Weapon . | . . . . Impact Weapon 2 | . . 1 1 Slashing Weapon . | . . . . Piercing Weapon . | . . . . Special Melee Weapon . | . . . . Unidentified Prototypes 3 | . . 3 . Parts Lost 15 | . . 9 6 Power 3 | . . 3 . Propulsion 3 | . . 2 1 Utility 6 | . . 2 4 Weapon 3 | . . 2 1 Highest Loss Streak 5 | . . 3 5 To Critical Strikes 1 | . . 1 . Average Slot Usage (%) 91 | . 99 90 87 Engine 15 | . 14 17 11 Treads 2 | . . 4 . Leg 19 | . 28 15 21 Device 9 | . 5 10 11 Storage 11 | . 14 11 11 Protection 8 | . 7 8 9 Energy Gun 8 | . 12 11 . Ballistic Gun 7 | . 15 7 . Ballistic Cannon 2 | . . . 10 Impact Weapon 4 | . . 3 11 Peak Build Rating 17 | 6 9 17 17 Average Rating 11 | 3 7 12 14 On Entrance 8 | . 6 9 17 Naked Turns . | . . . . Heaviest Build 26 | 10 17 26 25 Greatest Support 40 | 20 20 40 23 Greatest Overweight (x) 7 | . . 7 1 Average Overweight (x) . | . . . . Largest Inventory Capacity 8 | 8 8 8 8 Average Capacity 7 | 6 8 8 8 Most Carried 8 | 3 6 7 8 Average Carried 5 | . 4 5 7 Final Capacity 8 | 8 8 8 8 Final Carried 7 | 1 6 7 4 Class Distribution -------------------- 67% | Mutant 32% | Scavenger-Mutant Dominant Class ---------------- Mutant | -10/Materials Scavenger-Mutant | -9/Materials Mutant | -9/Storage Resources | -11 -10 -9 -9 ----------- Run | Yrd Mat Mat Sto Matter Collected 1041 | 131 264 505 141 Remotely . | . . . . Salvage Created 1896 | . 396 1023 477 Parts 111 | . 22 72 17 Haulers Intercepted . | . . . . Recyclers Shooed 1 | . . 1 . Parts Field Recycled . | . . . . Retrieved Matter . | . . . . Parts Self-Destructed . | . . . . Prevented . | . . . . Kills | -11 -10 -9 -9 ------- Run | Yrd Mat Mat Sto Combat Hostiles Destroyed 47 | . 11 26 10 Melee 3 | . . 1 2 Guns 34 | . 11 23 . Cannons 5 | . . . 5 AOE 1 | . . . 1 Classes Destroyed 11 | . 2 6 3 Worker 2 | . . 1 1 Builder 2 | . . 1 1 Tunneler 1 | . . 1 . Recycler 1 | . . . 1 Mechanic 1 | . . . 1 Watcher 3 | . . 3 . Swarmer 10 | . 3 7 . Grunt 23 | . 8 11 4 Brawler 2 | . . 1 1 Duelist 1 | . . . 1 Sentry 11 | . . 7 4 Best Kill Streak 8 | . 3 8 3 Combat Bots Only 8 | . 3 8 3 Max Kills in Single Turn 2 | . 2 2 1 Gunslinging 1 | . 1 1 . Exploded 1 | . . . 1 Melee 1 | . . 1 1 Uniques/NPCs Destroyed . | . . . . Combat | -11 -10 -9 -9 -------- Run | Yrd Mat Mat Sto Hostile Shots Fired 340 | . 61 169 110 Missed 93 | . 11 46 36 Damage Taken 2298 | . 467 905 926 Core 464 | . 55 147 262 Absorbed by Shields 320 | . . 292 28 Redirected to Shielding 4 | . 4 . . Ignored by Resistances 763 | . 142 348 273 Core Remaining (%) 89 | 100 78 . . Volleys Fired 143 | . 41 71 31 Largest 2 | . 2 2 2 Hottest 130 | . 130 130 65 Shots Fired 229 | . 82 115 32 Gun 197 | . 82 115 . Cannon 29 | . . . 29 Launcher 3 | . . . 3 Special . | . . . . Kinetic 159 | . 69 61 29 Thermal 67 | . 13 54 . Explosive 3 | . . . 3 Electromagnetic . | . . . . Robot Hit Streak 23 | . 19 23 12 Robot Miss Streak 3 | . 2 3 2 Penetration Max . | . . . . Secondary Targets 4 | . 1 3 . Max Gunslinging Chain 1 | . 1 1 . Shots Hit Robots 231 | . 70 106 55 Core Hits 81 | . 24 41 16 Critical Kills . | . . . . Critical Parts Destroyed 5 | . . . 5 Critical Strikes 7 | . . . 7 Blast 2 | . . . 2 Smash 5 | . . . 5 Melee Attacks 47 | . . 16 31 Impact 47 | . . 16 31 Slashing . | . . . . Piercing . | . . . . Sneak Attacks 5 | . . . 5 Combat Hostiles . | . . . . Follow-up Attacks . | . . . . Damage Inflicted 4065 | . 649 1761 1655 Guns 1971 | . 645 1326 . Cannons 395 | . . . 395 Explosions 199 | . . . 199 Melee 1494 | . . 433 1061 Ramming 6 | . 4 2 . Kinetic 1577 | . 487 695 395 Thermal 789 | . 158 631 . Explosive 199 | . . . 199 Electromagnetic . | . . . . Impact 1494 | . . 433 1061 Slashing . | . . . . Piercing . | . . . . Highest Corruption . | . . . . Average Corruption . | . . . . Corruption Purged . | . . . . Corruption Blocked . | . . . . Overload Shots . | . . . . Overflow Damage 350 | . . 27 323 Projectiles . | . . . . Explosions . | . . . . Melee 350 | . . 27 323 Knockbacks 5 | . . 2 3 Impact 2 | . . 2 . Kinetic 3 | . . . 3 Secondary . | . . . . Self-Inflicted Damage 100 | . . . 100 Shots 3 | . . . 3 Rammed . | . . . . Targets Rammed 3 | . 1 2 . Kicked 3 | . 1 2 . Crushed . | . . . . Highest Temperature 399 | . 253 399 14 Average Temperature 126 | . 121 131 8 Received Heat Transfer 1171 | . 321 428 422 Effects 6 | . . 6 . Shutdowns 2 | . . 2 . Energy Bleed 1 | . . 1 . Interference 1 | . . 1 . Matter Decay 1 | . . 1 . Damage (minor) 1 | . . 1 . Siege Activations . | . . . . Robots Corrupted 5 | . . 2 3 Combat Hostiles 4 | . . 2 2 Parts Fried 10 | . . 4 6 Impact Corruptions 14 | . . 3 11 Robots Melted . | . . . . Combat Hostiles . | . . . . Parts Melted 2 | . . 2 . Heat Transferred 1850 | . 370 1480 . Parts Sabotaged . | . . . . Parts Stolen . | . . . . Parts Stripped . | . . . . Power Chain Reactions . | . . . . Alert | -11 -10 -9 -9 ------- Run | Yrd Mat Mat Sto Peak Influence 561 | . 238 561 351 Initial 151 | . . 25 151 Average 193 | . 78 213 261 Maximum Alert Level 2 | . 1 2 1 Low Security (%) 56 | 100 86 59 24 Level 1 27 | . 13 10 75 Level 2 16 | . . 30 . Level 3 . | . . . . Level 4 . | . . . . Level 5 . | . . . . High Security . | . . . . Max Security . | . . . . Squads Dispatched 7 | . 2 4 1 Investigation 3 | . 2 1 . Extermination . | . . . . Reinforcement 4 | . . 3 1 Assault . | . . . . Garrison . | . . . . Intercept . | . . . . Searches Triggered . | . . . . Construction Impeded 1 | . . . 1 Haulers Reinforced . | . . . . Active Scanning Responses . | . . . . Cargo Convoy Interrupts . | . . . . Stealth | -11 -10 -9 -9 --------- Run | Yrd Mat Mat Sto Distress Signals 2 | . . 1 1 Communications Jammed . | . . . . Distress Signals . | . . . . Times Spotted 79 | . 15 48 16 Peak Tracking Total 7 | . 3 7 5 Tactical Retreats 7 | . 3 4 . Traps | -11 -10 -9 -9 ------- Run | Yrd Mat Mat Sto Traps Triggered 2 | . 1 . 1 Indirectly . | . . . . Trap Hack Attempts . | . . . . Triggered . | . . . . Disarmed . | . . . . Reprogrammed . | . . . . Reused . | . . . . Traps Extracted . | . . . . Installed . | . . . . Triggered . | . . . . Machines | -11 -10 -9 -9 ---------- Run | Yrd Mat Mat Sto Machines Disabled . | . . . . Max in Single Turn . | . . . . Machines Repaired . | . . . . Machines Dismantled . | . . . . Machines Sabotaged . | . . . . Overloaded Fab Kills . | . . . . Hacking | -11 -10 -9 -9 --------- Run | Yrd Mat Mat Sto Machines Accessed 11 | . 2 7 2 Terminals 8 | . 2 5 1 Fabricators . | . . . . Repair Stations . | . . . . Recycling Units 2 | . . 1 1 Scanalyzers 1 | . . 1 . Garrison Access . | . . . . Total Hacks 28 | . 5 19 4 Successful 16 | . 2 11 3 Failed 12 | . 3 8 1 Catastrophic 3 | . 1 2 . Database Lockouts . | . . . . Manual 1 | . . . 1 Terminals 20 | . 5 14 1 Fabricators . | . . . . Repair Stations . | . . . . Recycling Units 6 | . . 3 3 Scanalyzers 2 | . . 2 . Garrison Access . | . . . . Terminal Hacks 10 | . 2 7 1 Record 1 | . . 1 . Part Schematic 1 | . . . 1 Prototype ID Bank 1 | . . 1 . Emergency Access Points 1 | . . 1 . Unreport Threat 1 | . 1 . . Locate Traps 1 | . . 1 . Dispatch Records 1 | . . 1 . Hauler Manifests 1 | . . 1 . Registered Components 1 | . . 1 . Registered Prototypes 1 | . 1 . . Fabricator Hacks . | . . . . Repair Station Hacks . | . . . . Recycling Unit Hacks 4 | . . 2 2 Retrieve Matter 2 | . . 1 1 Retrieve Components 2 | . . 1 1 Scanalyzer 2 | . . 2 . Insert Component 1 | . . 1 . Analyze 1 | . . 1 . Garrison Access Hacks . | . . . . Unauthorized Hacks . | . . . . Terminals . | . . . . Fabricators . | . . . . Repair Stations . | . . . . Recycling Units . | . . . . Scanalyzers . | . . . . Garrison Access . | . . . . Data Cores Recovered . | . . . . Used . | . . . . Hacking Detections 9 | . 2 5 2 Full Trace Events 3 | . 1 2 . Feedback Events . | . . . . Feedback Blocked . | . . . . Robot Schematics Acquired . | . . . . Robots Built . | . . . . Authchips . | . . . . Time . | . . . . Total Robot Build Rating . | . . . . Part Schematics Acquired 2 | . . 1 1 Parts Built . | . . . . Authchips . | . . . . Time . | . . . . Total Part Build Rating . | . . . . Parts Repaired . | . . . . Time . | . . . . Parts Recycled . | . . . . Recycled Matter . | . . . . Retrieved Matter . | . . . . Retrieved Components 20 | . . 10 10 Parts Scanalyzed 1 | . . 1 . Part Schematics Acquired 1 | . . 1 . Parts Damaged . | . . . . Bothacking | -11 -10 -9 -9 ------------ Run | Yrd Mat Mat Sto Used RIF Installer . | . . . . Robots Hacked . | . . . . Non-combat . | . . . . Combat . | . . . . Robot Hacks Applied . | . . . . Relay Couplers Released . | . . . . Fabnet Peak Effective % . | . . . . Robots Rewired . | . . . . Allies Hacked . | . . . . Hacks Repelled . | . . . . Allies | -11 -10 -9 -9 -------- Run | Yrd Mat Mat Sto Total Allies . | . . . . Largest Group . | . . . . Highest-Rated Group . | . . . . Highest-Rated Ally . | . . . . Total Orders . | . . . . Ally Attacks . | . . . . Total Damage . | . . . . Kills . | . . . . Allies Corrupted . | . . . . Allies Melted . | . . . . Intel | -11 -10 -9 -9 ------- Run | Yrd Mat Mat Sto Robot Analysis Total . | . . . . Derelict Logs Recovered . | . . . . Drone Launches . | . . . . Drone Recoveries . | . . . . Exploration | -11 -10 -9 -9 ------------- Run | Yrd Mat Mat Sto Turns Passed 2913 | 59 598 1526 730 Spaces Moved 1441 | 41 367 730 303 Core 23 | 10 . 13 . Treads 137 | . . 137 . Legs 1281 | 31 367 580 303 Wheels . | . . . . Hover . | . . . . Flight . | . . . . Fastest Speed 50 | 50 120 120 120 Average Speed 151 | 102 120 162 170 Slowest Speed 400 | 120 120 400 190 Overloaded Moves . | . . . . Propulsion Burnouts . | . . . . Robots Hopped . | . . . . Cave-ins Triggered . | . . . . Exploration Rate (%) 43 | 4 56 60 52 Regions Visited 3 Branch Regions 1 Pre-discovered Areas 1 | . . . 1 Known Exits Taken . | . . . . Unknown Exits Taken 3 | 1 1 1 . Scrap Searched . | . . . . Spaces Dug . | . . . . Terrain Destroyed 17 | . . . 17 Melee . | . . . . Projectile . | . . . . AOE 17 | . . . 17 Terrain Rammed . | . . . . Walls Destroyed . | . . . . Machines Disabled . | . . . . Actions | -11 -10 -9 -9 --------- Run | Yrd Mat Mat Sto Total 1880 | 58 455 928 439 Wait 134 | 5 24 54 51 Move 1438 | 40 366 729 303 Hop . | . . . . Pick Up 43 | 7 11 20 5 Fast Attach . | . . . . Attach 23 | 6 1 12 4 Detach . | . . . . Swap 26 | . 6 15 5 Drop 18 | . 5 9 4 Fire 143 | . 41 71 31 Melee 47 | . . 16 31 Ram . | . . . . Kick 3 | . 1 2 . Crush . | . . . . Escape Stasis 5 | . . . 5 Rewire . | . . . . Trap . | . . . . Miscellaneous . | . . . . Route ------- -11/Scrapyard -10/Materials (discovered 2 exits: *Mat / [*Min]) -9/Materials (discovered 3 exits: [*Mat] / [*Min] / *Sto) -9/Storage History --------- Turn | Location | Event 4 | -11/Scrapyard | Discovered new exit (range 15) 60 | -11/Scrapyard | Entered Materials 300 | -10/Materials | Build established: Mutant 455 | -10/Materials | Discovered new exit (range 16) 583 | -10/Materials | Discovered new exit (range 13) 658 | -10/Materials | Entered another Materials area 658 | -9/Materials | Evolved 2 slots: Power x1, Utility x1 945 | -9/Materials | Build established: Scavenger-Mutant 1292 | -9/Materials | Discovered new exit (range 16) 1332 | -9/Materials | Lost 3 parts (1p1n1w) 1569 | -9/Materials | Lost 3 parts (1p1u1w) 1594 | -9/Materials | Destroyed 8 combat bots 1825 | -9/Materials | Discovered new exit (range 6) 2023 | -9/Materials | Build established: Mutant 2072 | -9/Materials | Discovered new exit (range 7) 2184 | -9/Materials | Entered Storage 2306 | -9/Storage | Core integrity fell below 50% 2447 | -9/Storage | Learned location of Armory (-3) 2899 | -9/Storage | Core integrity fell below 20% 2914 | -9/Storage | Destroyed self with Mini Grenade Launcher Last Messages --------------- W-16 Scout distress signal alerts nearby ally. Med. Armor Plating destroyed. L-31 Rogue knocked back. K-01 Serf collects debris. L-31 Rogue knocked back. U-05 Engineer builds a Door. Imp. Heat Sink destroyed. K-01 Serf collects debris. L-31 Rogue destroyed. K-01 Serf collects debris. Critical hit (Burn: +37). Sneak attack on A-02 Transporter. K-01 Serf collects debris. Lgt. Armor Plating destroyed. Lgt. Cannon destroyed. K-01 Serf collects debris. Aluminum Leg destroyed. U-05 Engineer builds a Door. ALERT: Construction progress impeded, dispatching reinforcements to local area. Map ----- +----------------------------------------------------+ | =[=##????????????????????????????????????? | | T % ==/#????????????????????????????????????? | | """ ###???????????????????????????????????? | | """=""#???????????????????????????????????? | | """=Y"#??????????????? ?????????????????? | | ==""#??????????????? +????????????????? | | %###??????????????? #????????????????? | | [#????????????????? # ???????????????? | | ##########???????????????? ##???????????????? | | %##???????????????? ##???????????????? | | #####%* #T#??????????????? # ???????????????? | | ## # #??????????????# # ???????????????? | | ##*% # "??????????????# g# ???????????????? | | ## + #?????########## # ???????????????? | | ## ###?????# # # ???????????????? | | ## #???????# """""" # + ???????????????? | | ##### #??????## "????" # # ???????????????? | | ????# #??????## "????" # # ???????????????? | | ???## ##?????## """""" +!% # ???????????????? | | ???# #?????## # %##???????????????? | | ???# ######## w# k##???????????????? | | ???+ T *% + # ##???????????????? | | ???# ######## # # ???????????????? | | ???# #??????###### # # ???????????????? | | ???#######??????????## # """ ???????????? | | ????????????????????### @ """ ???????????? | | ????????????????????### Y g # ???????? | | ????????????????????## ?????????????? | | ????????????????????## # ???????????? | | ??????????????????? % # ???????? | | ????????????????? ####### ########## ???????? | | ?????????????????####### ?#######???????? | | ?????????????????###???????""?????????????????? | | ???????????????????????????"" ????????????????? | | ???????????????????????????"" ????????????????? | | ????????????????????????????? ???????????????? | | ?????????????????????????????? ???????????????? | | ??????????????????????????????????????????????? | | ####??????????????????????????????????????????? | | #??????????????????????????????????????????? | | #??????????????????????????????????????????? | | | #??????????????????????????????????????????? | | #??????????????????????????????????????????? | | +??????????????????????????????????????????? | | #??????????????????????????????????????????? | | #??????????????????????????????????????????? | | #??????????????????????????????????????????? | | ####??????????????????????????????????????????? | | | | | +----------------------------------------------------+ Best States ------------- Heat Dissipation 42 Energy Generation 17 Energy Capacity 400 Matter Stores 300 Matter Capacity 300 Sight Range 16 Terrain Scan Density 10 Armor Coverage 225 Resistance: KI 20 Resistance: TH 20 Resistance: EX 20 Resistance: EM 20 Resistance: I 20 Resistance: S 20 Resistance: P 20 Power Shielding 33 Evasion (%) 55 Recoil Reduction 2 Offensive Hacking 10 Item Schematics ----------------- Imp. Assault Rifle | -9/Materials | Scanalyzed Lyr. Light Armor Plating | -9/Storage | Hacked Robot Schematics ------------------ None Fabricated ------------ Nothing Alien Tech Used ----------------- None Achievements -------------- None Challenges ------------ None Game ------ Seed FissionRegenerativeStatue Manual? 0 Play Time 00:27:45 Cumulative 4.0 hours Start 2025.03.18 @ 18:24:10 End 2025.03.20 @ 12:29:50 Sessions 1 Manual Loads 0 Difficulty Adventurer Special Mode None Game No. 5 Rogue 0 Adventurer 5 Explorer 0 Win Type - Total 0 Types 0/0/0/0/0/0/0/0/0 Lore% 0 Gallery% 10 Achievement% 10 Wizard Run 0 Options --------- Layout 1 ASCII 0 Keyboard 0 Movement Mouse Keybinds 0 Fullscreen 1 Font 32/SmallcapsGlow Map View 50x40 Zoom Use 0% Tactical HUD 0 Map Filters NONE Filters NONE Steam 1 RUN: 9b3cbea9-ba55-45b0-8754-01fc7c4444e0